[Event "Titled Tuesday Blitz November 22 Early 2022"]
[White "Kuchava, Ana"]
[Black "Gedgafov, Chamal"]
[WhiteFideId "13605348"]
[BlackFideId "34130621"]
[WhiteElo "2001"]
[BlackElo "2067"]
[Result "0-1"]
[Round "08"]
[TimeControl "180+1"]
[Date "2022.11.23"]
[WhiteClock "0:00:04"]
[BlackClock "0:00:58"]

1. d4 {[%clk 0:03:00]}  d5 {[%clk 0:02:59]} 2. Nf3 {[%clk 0:02:58]}  Nf6 {[%clk 0:02:59]} 3. c4 {[%clk 0:02:57]}  c6 {[%clk 0:02:59]} 4. Qb3 {[%clk 0:02:56]}  dxc4 {[%clk 0:02:54]} 5. Qxc4 {[%clk 0:02:55]}  Qd5 {[%clk 0:02:55]} 6. Qxd5 {[%clk 0:02:50]}  cxd5 {[%clk 0:02:56]} 7. Bf4 {[%clk 0:02:46]}  Nc6 {[%clk 0:02:55]} 8. e3 {[%clk 0:02:45]}  Nb4 {[%clk 0:02:54]} 9. Na3 {[%clk 0:02:43]}  a6 {[%clk 0:02:53]} 10. Be2 {[%clk 0:02:42]}  Bf5 {[%clk 0:02:51]} 11. O-O {[%clk 0:02:41]}  Bd3 {[%clk 0:02:42]} 12. Rfe1 {[%clk 0:02:29]}  Bxe2 {[%clk 0:02:40]} 13. Rxe2 {[%clk 0:02:30]}  Rc8 {[%clk 0:02:40]} 14. Ne1 {[%clk 0:02:25]}  e6 {[%clk 0:02:39]} 15. Nac2 {[%clk 0:02:25]}  Nxc2 {[%clk 0:02:36]} 16. Rxc2 {[%clk 0:02:26]}  Rxc2 {[%clk 0:02:35]} 17. Nxc2 {[%clk 0:02:27]}  Kd7 {[%clk 0:02:36]} 18. Ne1 {[%clk 0:02:25]}  Bb4 {[%clk 0:02:33]} 19. Nd3 {[%clk 0:02:25]}  Bd6 {[%clk 0:02:32]} 20. Bxd6 {[%clk 0:02:04]}  Kxd6 {[%clk 0:02:33]} 21. Rc1 {[%clk 0:02:04]}  Ne4 {[%clk 0:02:31]} 22. f3 {[%clk 0:02:02]}  Nf6 {[%clk 0:02:27]} 23. Ne5 {[%clk 0:02:01]}  Rf8 {[%clk 0:02:23]} 24. Kf2 {[%clk 0:02:00]}  Nd7 {[%clk 0:02:22]} 25. Nd3 {[%clk 0:02:00]}  Rb8 {[%clk 0:02:13]} 26. Ke2 {[%clk 0:01:50]}  Rh8 {[%clk 0:02:11]} 27. e4 {[%clk 0:01:46]}  f6 {[%clk 0:02:02]} 28. Ke3 {[%clk 0:01:35]}  g5 {[%clk 0:02:00]} 29. g3 {[%clk 0:01:30]}  h5 {[%clk 0:01:59]} 30. f4 {[%clk 0:01:14]}  gxf4+ {[%clk 0:01:56]} 31. Nxf4 {[%clk 0:01:11]}  dxe4 {[%clk 0:01:55]} 32. Kxe4 {[%clk 0:01:09]}  h4 {[%clk 0:01:50]} 33. Ng6 {[%clk 0:01:09]}  Rh5 {[%clk 0:01:42]} 34. Nxh4 {[%clk 0:01:09]}  Ra5 {[%clk 0:01:42]} 35. a3 {[%clk 0:01:08]}  Rb5 {[%clk 0:01:42]} 36. b4 {[%clk 0:01:06]}  a5 {[%clk 0:01:42]} 37. bxa5 {[%clk 0:01:02]}  Rxa5 {[%clk 0:01:41]} 38. Rc3 {[%clk 0:00:58]}  Nb6 {[%clk 0:01:39]} 39. Rb3 {[%clk 0:00:56]}  Nd5 {[%clk 0:01:39]} 40. Nf3 {[%clk 0:00:49]}  b5 {[%clk 0:01:36]} 41. h4 {[%clk 0:00:48]}  Ra8 {[%clk 0:01:35]} 42. Rxb5 {[%clk 0:00:45]}  Rxa3 {[%clk 0:01:35]} 43. Rxd5+ {[%clk 0:00:33]}  exd5+ {[%clk 0:01:30]} 44. Kf4 {[%clk 0:00:33]}  Ke6 {[%clk 0:01:29]} 45. g4 {[%clk 0:00:31]}  Ra1 {[%clk 0:01:28]} 46. g5 {[%clk 0:00:27]}  fxg5+ {[%clk 0:01:25]} 47. Nxg5+ {[%clk 0:00:27]}  Kf6 {[%clk 0:01:25]} 48. Nf3 {[%clk 0:00:27]}  Ra2 {[%clk 0:01:20]} 49. Kg4 {[%clk 0:00:26]}  Re2 {[%clk 0:01:20]} 50. Kf4 {[%clk 0:00:26]}  Re4+ {[%clk 0:01:20]} 51. Kg3 {[%clk 0:00:27]}  Kf5 {[%clk 0:01:20]} 52. h5 {[%clk 0:00:25]}  Re2 {[%clk 0:01:18]} 53. Ne5 {[%clk 0:00:18]}  Kg5 {[%clk 0:01:16]} 54. Ng6 {[%clk 0:00:17]}  Re4 {[%clk 0:01:12]} 55. Nf8 {[%clk 0:00:11]}  Kxh5 {[%clk 0:01:09]} 56. Nd7 {[%clk 0:00:09]}  Rxd4 {[%clk 0:01:07]} 57. Nf6+ {[%clk 0:00:09]}  Kg5 {[%clk 0:01:07]} 58. Nd7 {[%clk 0:00:09]}  Rd3+ {[%clk 0:01:06]} 59. Kf2 {[%clk 0:00:10]}  Kf4 {[%clk 0:01:03]} 60. Ke2 {[%clk 0:00:11]}  Rc3 {[%clk 0:01:03]} 61. Kd2 {[%clk 0:00:06]}  Rc6 {[%clk 0:01:03]} 62. Nb8 {[%clk 0:00:05]}  Rd6 {[%clk 0:00:59]} 63. Kd3 {[%clk 0:00:04]}  Ke5 {[%clk 0:00:58]} 0-1


[Site "https://www.chess.com"]

[Event "Titled Tuesday Blitz November 22 Early 2022"]
[White "Le, Tuan Minh"]
[Black "Donchenko, Alexander"]
[WhiteFideId "12401153"]
[BlackFideId "24603295"]
[WhiteElo "2530"]
[BlackElo "2572"]
[Result "1-0"]
[Round "08"]
[TimeControl "180+1"]
[Date "2022.11.22"]
[WhiteClock "0:01:18"]
[BlackClock "0:01:23"]

1. d4 {[%clk 0:03:00]}  d5 {[%clk 0:03:00]} 2. Nf3 {[%clk 0:02:54]}  Nf6 {[%clk 0:03:00]} 3. Bf4 {[%clk 0:02:54]}  e6 {[%clk 0:02:59]} 4. e3 {[%clk 0:02:54]}  Bd6 {[%clk 0:02:59]} 5. Bg3 {[%clk 0:02:54]}  b6 {[%clk 0:02:58]} 6. c4 {[%clk 0:02:54]}  O-O {[%clk 0:02:56]} 7. Nc3 {[%clk 0:02:54]}  Bb7 {[%clk 0:02:55]} 8. Rc1 {[%clk 0:02:54]}  Nbd7 {[%clk 0:02:53]} 9. cxd5 {[%clk 0:02:53]}  Nxd5 {[%clk 0:02:52]} 10. Bd3 {[%clk 0:02:53]}  Qe7 {[%clk 0:02:46]} 11. Bh4 {[%clk 0:02:49]}  Qe8 {[%clk 0:02:41]} 12. O-O {[%clk 0:02:42]}  Nxc3 {[%clk 0:02:40]} 13. bxc3 {[%clk 0:02:31]}  h6 {[%clk 0:02:37]} 14. e4 {[%clk 0:02:28]}  e5 {[%clk 0:02:35]} 15. Re1 {[%clk 0:02:29]}  Qe6 {[%clk 0:02:30]} 16. Qa4 {[%clk 0:02:17]}  a6 {[%clk 0:02:24]} 17. Bc4 {[%clk 0:02:12]}  Qe8 {[%clk 0:02:22]} 18. Qb3 {[%clk 0:01:57]}  b5 {[%clk 0:02:17]} 19. Bf1 {[%clk 0:01:42]}  Nb6 {[%clk 0:02:17]} 20. dxe5 {[%clk 0:01:20]}  Bxe5 {[%clk 0:02:17]} 21. Nxe5 {[%clk 0:01:21]}  Qxe5 {[%clk 0:02:18]} 22. Bg3 {[%clk 0:01:22]}  Qe7 {[%clk 0:02:13]} 23. c4 {[%clk 0:01:22]}  Rfc8 {[%clk 0:01:23]} 24. c5 {[%clk 0:01:18]} 1-0


[Site "https://www.chess.com"]

[Event "Titled Tuesday Blitz November 22 Early 2022"]
[White "Li, Hui"]
[Black "Winkels, Marcel"]
[WhiteFideId "15400310"]
[BlackFideId "1003887"]
[WhiteElo "1954"]
[BlackElo "1900"]
[Result "1-0"]
[Round "08"]
[TimeControl "180+1"]
[Date "2022.11.23"]
[WhiteClock "0:01:15"]
[BlackClock "0:00:29"]

1. e4 {[%clk 0:03:00]}  c5 {[%clk 0:03:00]} 2. Nf3 {[%clk 0:03:00]}  e6 {[%clk 0:03:01]} 3. d4 {[%clk 0:03:01]}  cxd4 {[%clk 0:03:01]} 4. Nxd4 {[%clk 0:03:02]}  a6 {[%clk 0:03:01]} 5. c4 {[%clk 0:03:01]}  Nf6 {[%clk 0:02:59]} 6. Nc3 {[%clk 0:03:02]}  Bb4 {[%clk 0:02:57]} 7. Bd3 {[%clk 0:03:02]}  d6 {[%clk 0:02:51]} 8. Qa4+ {[%clk 0:03:00]}  Nc6 {[%clk 0:02:32]} 9. Nxc6 {[%clk 0:03:00]}  bxc6 {[%clk 0:02:29]} 10. Qxb4 {[%clk 0:02:58]}  O-O {[%clk 0:02:29]} 11. O-O {[%clk 0:02:50]}  c5 {[%clk 0:02:29]} 12. Qa3 {[%clk 0:02:49]}  Qc7 {[%clk 0:02:28]} 13. Bg5 {[%clk 0:02:41]}  Ng4 {[%clk 0:02:17]} 14. Bh4 {[%clk 0:02:35]}  Ne5 {[%clk 0:02:14]} 15. Be2 {[%clk 0:02:33]}  Rb8 {[%clk 0:02:14]} 16. Bg3 {[%clk 0:02:27]}  Ng6 {[%clk 0:01:57]} 17. b3 {[%clk 0:02:24]}  f5 {[%clk 0:01:50]} 18. exf5 {[%clk 0:02:23]}  exf5 {[%clk 0:01:50]} 19. Nd5 {[%clk 0:02:22]}  Qd8 {[%clk 0:01:46]} 20. Qc1 {[%clk 0:02:10]}  Bb7 {[%clk 0:01:44]} 21. Qd2 {[%clk 0:02:08]}  Kh8 {[%clk 0:01:40]} 22. Rad1 {[%clk 0:02:07]}  Bxd5 {[%clk 0:01:37]} 23. Qxd5 {[%clk 0:02:03]}  f4 {[%clk 0:01:36]} 24. Qxd6 {[%clk 0:02:00]}  fxg3 {[%clk 0:01:35]} 25. hxg3 {[%clk 0:01:56]}  Qxd6 {[%clk 0:01:22]} 26. Rxd6 {[%clk 0:01:57]}  a5 {[%clk 0:01:22]} 27. Ra6 {[%clk 0:01:49]}  Ra8 {[%clk 0:01:20]} 28. Rxa8 {[%clk 0:01:48]}  Rxa8 {[%clk 0:01:20]} 29. Bf3 {[%clk 0:01:48]}  Ra7 {[%clk 0:01:18]} 30. Rd1 {[%clk 0:01:47]}  Kg8 {[%clk 0:01:10]} 31. Rd8+ {[%clk 0:01:44]}  Kf7 {[%clk 0:01:09]} 32. Ra8 {[%clk 0:01:44]}  Rxa8 {[%clk 0:01:05]} 33. Bxa8 {[%clk 0:01:45]}  Ke6 {[%clk 0:01:04]} 34. Bd5+ {[%clk 0:01:44]}  Ke5 {[%clk 0:01:04]} 35. Kf1 {[%clk 0:01:38]}  Ne7 {[%clk 0:01:03]} 36. Ke2 {[%clk 0:01:28]}  Nxd5 {[%clk 0:01:01]} 37. cxd5 {[%clk 0:01:28]}  Kxd5 {[%clk 0:01:01]} 38. Kd3 {[%clk 0:01:29]}  g5 {[%clk 0:00:54]} 39. g4 {[%clk 0:01:27]}  Kc6 {[%clk 0:00:49]} 40. Kc4 {[%clk 0:01:27]}  Kb6 {[%clk 0:00:49]} 41. a3 {[%clk 0:01:23]}  Kc6 {[%clk 0:00:48]} 42. g3 {[%clk 0:01:23]}  Kb6 {[%clk 0:00:47]} 43. f4 {[%clk 0:01:15]}  gxf4 {[%clk 0:00:44]} 44. gxf4 {[%clk 0:01:15]}  Kc6 {[%clk 0:00:45]} 45. f5 {[%clk 0:01:11]}  Kd6 {[%clk 0:00:40]} 46. Kb5 {[%clk 0:01:11]}  a4 {[%clk 0:00:37]} 47. Kxa4 {[%clk 0:01:10]}  Ke5 {[%clk 0:00:35]} 48. Kb5 {[%clk 0:01:10]}  h5 {[%clk 0:00:34]} 49. gxh5 {[%clk 0:01:09]}  Kxf5 {[%clk 0:00:35]} 50. Kxc5 {[%clk 0:01:09]}  Kg5 {[%clk 0:00:35]} 51. a4 {[%clk 0:01:10]}  Kxh5 {[%clk 0:00:35]} 52. a5 {[%clk 0:01:11]}  Kg5 {[%clk 0:00:36]} 53. a6 {[%clk 0:01:12]}  Kf5 {[%clk 0:00:36]} 54. a7 {[%clk 0:01:13]}  Ke5 {[%clk 0:00:36]} 55. a8=Q {[%clk 0:01:13]}  Kf4 {[%clk 0:00:36]} 56. Qd5 {[%clk 0:01:14]}  Ke3 {[%clk 0:00:36]} 57. b4 {[%clk 0:01:15]}  Ke2 {[%clk 0:00:35]} 58. b5 {[%clk 0:01:16]}  Ke3 {[%clk 0:00:36]} 59. b6 {[%clk 0:01:17]}  Kf2 {[%clk 0:00:36]} 60. b7 {[%clk 0:01:17]}  Ke3 {[%clk 0:00:36]} 61. b8=Q {[%clk 0:01:17]}  Ke2 {[%clk 0:00:35]} 62. Qbe5+ {[%clk 0:01:17]}  Kf2 {[%clk 0:00:33]} 63. Qdd4+ {[%clk 0:01:16]}  Kg2 {[%clk 0:00:31]} 64. Qe2+ {[%clk 0:01:15]}  Kh3 {[%clk 0:00:29]} 65. Qdg4# {[%clk 0:01:15]} 1-0


[Site "https://www.chess.com"]

[Event "Titled Tuesday Blitz November 22 Early 2022"]
[White "Matinian, Nikita"]
[Black "Tang, Andrew"]
[WhiteFideId "24129100"]
[BlackFideId "2059630"]
[WhiteElo "2422"]
[BlackElo "2581"]
[Result "0-1"]
[Round "08"]
[TimeControl "180+1"]
[Date "2022.11.22"]
[WhiteClock "0:00:04"]
[BlackClock "0:01:13"]

1. e4 {[%clk 0:03:00]}  e5 {[%clk 0:02:57]} 2. Nf3 {[%clk 0:03:00]}  Nc6 {[%clk 0:02:57]} 3. Bb5 {[%clk 0:03:00]}  g6 {[%clk 0:02:58]} 4. c3 {[%clk 0:02:56]}  a6 {[%clk 0:02:57]} 5. Ba4 {[%clk 0:02:55]}  Bg7 {[%clk 0:02:57]} 6. d4 {[%clk 0:02:55]}  exd4 {[%clk 0:02:58]} 7. cxd4 {[%clk 0:02:55]}  b5 {[%clk 0:02:59]} 8. Bb3 {[%clk 0:02:53]}  Na5 {[%clk 0:02:59]} 9. Bg5 {[%clk 0:02:40]}  Ne7 {[%clk 0:02:56]} 10. Qd2 {[%clk 0:02:38]}  h6 {[%clk 0:02:54]} 11. Bf4 {[%clk 0:02:34]}  Nxb3 {[%clk 0:02:39]} 12. axb3 {[%clk 0:02:23]}  d6 {[%clk 0:02:39]} 13. h4 {[%clk 0:02:09]}  Bg4 {[%clk 0:02:29]} 14. Nc3 {[%clk 0:02:08]}  Nc6 {[%clk 0:01:45]} 15. d5 {[%clk 0:02:01]}  Bxf3 {[%clk 0:01:39]} 16. gxf3 {[%clk 0:02:00]}  Nd4 {[%clk 0:01:39]} 17. Qd1 {[%clk 0:01:17]}  Qf6 {[%clk 0:01:38]} 18. Be3 {[%clk 0:01:18]}  Nxf3+ {[%clk 0:01:37]} 19. Kf1 {[%clk 0:01:18]}  O-O {[%clk 0:01:30]} 20. h5 {[%clk 0:01:03]}  g5 {[%clk 0:01:27]} 21. Rh3 {[%clk 0:00:51]}  g4 {[%clk 0:01:25]} 22. Rg3 {[%clk 0:00:51]}  Qh4 {[%clk 0:01:25]} 23. Ke2 {[%clk 0:00:44]}  Qxh5 {[%clk 0:01:21]} 24. Qh1 {[%clk 0:00:41]}  Qg6 {[%clk 0:01:19]} 25. Rxf3 {[%clk 0:00:26]}  gxf3+ {[%clk 0:01:19]} 26. Qxf3 {[%clk 0:00:24]}  f5 {[%clk 0:01:18]} 27. exf5 {[%clk 0:00:19]}  Rxf5 {[%clk 0:01:18]} 28. Qh3 {[%clk 0:00:12]}  Re8 {[%clk 0:01:15]} 29. Rxa6 {[%clk 0:00:10]}  b4 {[%clk 0:01:15]} 30. Nb5 {[%clk 0:00:04]}  Rxd5 {[%clk 0:01:13]} 31. Kf1 {[%clk 0:00:04]}  Rd1+ {[%clk 0:01:13]} 0-1


[Site "https://www.chess.com"]

[Event "Titled Tuesday Blitz November 22 Early 2022"]
[White "Mihailidis, Anastasios"]
[Black "Odinaev, Timur"]
[WhiteFideId "4205588"]
[BlackFideId "4163770"]
[WhiteElo "2312"]
[BlackElo "2306"]
[Result "0-1"]
[Round "08"]
[TimeControl "180+1"]
[Date "2022.11.23"]
[WhiteClock "0:00:13"]
[BlackClock "0:00:37"]

1. e4 {[%clk 0:02:31]}  c5 {[%clk 0:02:59]} 2. Nf3 {[%clk 0:02:31]}  d6 {[%clk 0:02:59]} 3. d4 {[%clk 0:02:32]}  cxd4 {[%clk 0:03:00]} 4. Nxd4 {[%clk 0:02:33]}  Nf6 {[%clk 0:03:01]} 5. f3 {[%clk 0:02:33]}  Nc6 {[%clk 0:02:59]} 6. c4 {[%clk 0:02:34]}  g6 {[%clk 0:02:58]} 7. Be3 {[%clk 0:02:34]}  Bg7 {[%clk 0:02:58]} 8. Nc3 {[%clk 0:02:35]}  O-O {[%clk 0:02:58]} 9. Be2 {[%clk 0:02:36]}  Bd7 {[%clk 0:02:55]} 10. O-O {[%clk 0:02:36]}  a5 {[%clk 0:02:54]} 11. Qd2 {[%clk 0:02:36]}  Nxd4 {[%clk 0:02:54]} 12. Bxd4 {[%clk 0:02:37]}  Bc6 {[%clk 0:02:54]} 13. Rac1 {[%clk 0:02:37]}  a4 {[%clk 0:02:55]} 14. Rc2 {[%clk 0:02:37]}  Nd7 {[%clk 0:02:54]} 15. Rfc1 {[%clk 0:02:38]}  Bxd4+ {[%clk 0:02:53]} 16. Qxd4 {[%clk 0:02:38]}  Qb6 {[%clk 0:02:51]} 17. Qxb6 {[%clk 0:02:38]}  Nxb6 {[%clk 0:02:52]} 18. Nd5 {[%clk 0:02:39]}  Bxd5 {[%clk 0:02:50]} 19. cxd5 {[%clk 0:02:40]}  Rfc8 {[%clk 0:02:49]} 20. Rxc8+ {[%clk 0:02:39]}  Rxc8 {[%clk 0:02:50]} 21. Rxc8+ {[%clk 0:02:39]}  Nxc8 {[%clk 0:02:51]} 22. Bb5 {[%clk 0:02:40]}  Nb6 {[%clk 0:02:51]} 23. Kf2 {[%clk 0:02:39]}  Kg7 {[%clk 0:02:50]} 24. Ke3 {[%clk 0:02:39]}  Kf6 {[%clk 0:02:50]} 25. Kd4 {[%clk 0:02:38]}  Kg5 {[%clk 0:02:48]} 26. g3 {[%clk 0:02:36]}  h5 {[%clk 0:02:47]} 27. h3 {[%clk 0:02:31]}  e5+ {[%clk 0:02:36]} 28. dxe6 {[%clk 0:02:24]}  fxe6 {[%clk 0:02:36]} 29. f4+ {[%clk 0:02:20]}  Kf6 {[%clk 0:02:35]} 30. g4 {[%clk 0:02:16]}  hxg4 {[%clk 0:02:34]} 31. hxg4 {[%clk 0:02:16]}  g5 {[%clk 0:02:22]} 32. e5+ {[%clk 0:02:09]}  dxe5+ {[%clk 0:02:20]} 33. fxe5+ {[%clk 0:02:09]}  Ke7 {[%clk 0:02:05]} 34. Kc5 {[%clk 0:02:09]}  Nd5 {[%clk 0:02:05]} 35. Bxa4 {[%clk 0:02:08]}  Ne3 {[%clk 0:02:06]} 36. Kb6 {[%clk 0:02:03]}  Nxg4 {[%clk 0:02:06]} 37. Kxb7 {[%clk 0:02:04]}  Nxe5 {[%clk 0:02:06]} 38. Bb5 {[%clk 0:02:02]}  Kd6 {[%clk 0:02:04]} 39. a4 {[%clk 0:02:02]}  Kc5 {[%clk 0:02:03]} 40. Be2 {[%clk 0:01:56]}  Kb4 {[%clk 0:02:03]} 41. Bd1 {[%clk 0:01:52]}  g4 {[%clk 0:02:00]} 42. Be2 {[%clk 0:01:31]}  g3 {[%clk 0:01:56]} 43. Bf1 {[%clk 0:01:29]}  Kxa4 {[%clk 0:01:45]} 44. Kc7 {[%clk 0:01:27]}  Nf7 {[%clk 0:01:33]} 45. Kc6 {[%clk 0:01:04]}  Kb3 {[%clk 0:01:32]} 46. Kc5 {[%clk 0:01:04]}  Kxb2 {[%clk 0:01:32]} 47. Kd4 {[%clk 0:01:05]}  Ng5 {[%clk 0:01:29]} 48. Ke3 {[%clk 0:01:04]}  e5 {[%clk 0:01:28]} 49. Bg2 {[%clk 0:00:55]}  Kc1 {[%clk 0:01:26]} 50. Ke2 {[%clk 0:00:54]}  Kc2 {[%clk 0:01:25]} 51. Bb7 {[%clk 0:00:50]}  Kc3 {[%clk 0:01:18]} 52. Kf1 {[%clk 0:00:46]}  Ne6 {[%clk 0:00:54]} 53. Kg2 {[%clk 0:00:41]}  Nc5 {[%clk 0:00:51]} 54. Bc6 {[%clk 0:00:39]}  Ne6 {[%clk 0:00:40]} 55. Kxg3 {[%clk 0:00:36]}  Kd4 {[%clk 0:00:40]} 56. Bh1 {[%clk 0:00:32]}  Nf4 {[%clk 0:00:40]} 57. Kf3 {[%clk 0:00:31]}  Nd3 {[%clk 0:00:39]} 58. Ke2 {[%clk 0:00:30]}  Nc5 {[%clk 0:00:39]} 59. Bg2 {[%clk 0:00:29]}  Ne4 {[%clk 0:00:39]} 60. Bf3 {[%clk 0:00:25]}  Nc3+ {[%clk 0:00:37]} 61. Kf2 {[%clk 0:00:20]}  Kd3 {[%clk 0:00:37]} 62. Bg2 {[%clk 0:00:19]}  Nb5 {[%clk 0:00:37]} 63. Bf1+ {[%clk 0:00:18]}  Kd2 {[%clk 0:00:36]} 64. Bxb5 {[%clk 0:00:19]}  e4 {[%clk 0:00:36]} 65. Bc6 {[%clk 0:00:18]}  e3+ {[%clk 0:00:37]} 66. Kg3 {[%clk 0:00:13]}  e2 {[%clk 0:00:37]} 0-1


[Site "https://www.chess.com"]

[Event "Titled Tuesday Blitz November 22 Early 2022"]
[White "Miszler, Levente"]
[Black "Kim, Sergey"]
[WhiteFideId "763276"]
[BlackFideId "13700570"]
[WhiteElo "2176"]
[BlackElo "2619"]
[Result "1-0"]
[Round "08"]
[TimeControl "180+1"]
[Date "2022.11.23"]
[WhiteClock "0:00:07"]
[BlackClock "0:00:02"]

1. Nf3 {[%clk 0:02:59]}  Nf6 {[%clk 0:02:59]} 2. c4 {[%clk 0:02:58]}  g6 {[%clk 0:02:59]} 3. g3 {[%clk 0:02:58]}  Bg7 {[%clk 0:02:59]} 4. Bg2 {[%clk 0:02:58]}  d6 {[%clk 0:02:59]} 5. O-O {[%clk 0:02:56]}  O-O {[%clk 0:02:59]} 6. Nc3 {[%clk 0:02:57]}  e5 {[%clk 0:02:59]} 7. d3 {[%clk 0:02:57]}  c6 {[%clk 0:02:59]} 8. Rb1 {[%clk 0:02:57]}  Re8 {[%clk 0:02:58]} 9. e4 {[%clk 0:02:49]}  a5 {[%clk 0:02:55]} 10. a3 {[%clk 0:02:49]}  Nbd7 {[%clk 0:02:52]} 11. b4 {[%clk 0:02:49]}  axb4 {[%clk 0:02:50]} 12. axb4 {[%clk 0:02:50]}  Nf8 {[%clk 0:02:50]} 13. b5 {[%clk 0:02:48]}  Ne6 {[%clk 0:02:42]} 14. Bb2 {[%clk 0:02:44]}  h6 {[%clk 0:02:40]} 15. Ra1 {[%clk 0:02:38]}  Bd7 {[%clk 0:02:39]} 16. Rxa8 {[%clk 0:02:24]}  Qxa8 {[%clk 0:02:38]} 17. Qc2 {[%clk 0:02:17]}  Nc5 {[%clk 0:02:17]} 18. Ra1 {[%clk 0:02:17]}  Qc8 {[%clk 0:02:16]} 19. bxc6 {[%clk 0:02:14]}  bxc6 {[%clk 0:02:16]} 20. Ba3 {[%clk 0:02:14]}  Qa8 {[%clk 0:01:57]} 21. Bb2 {[%clk 0:02:12]}  Qc8 {[%clk 0:01:55]} 22. Ba3 {[%clk 0:02:12]}  Qa8 {[%clk 0:01:54]} 23. Bb2 {[%clk 0:02:12]}  Qb8 {[%clk 0:01:48]} 24. Ba3 {[%clk 0:02:12]}  Ne6 {[%clk 0:01:46]} 25. Rb1 {[%clk 0:02:10]}  Qc7 {[%clk 0:01:46]} 26. Qb2 {[%clk 0:02:09]}  Ra8 {[%clk 0:01:41]} 27. Ne2 {[%clk 0:01:34]}  c5 {[%clk 0:01:26]} 28. Nc3 {[%clk 0:01:32]}  Nd4 {[%clk 0:01:26]} 29. Nxd4 {[%clk 0:01:29]}  exd4 {[%clk 0:01:25]} 30. Nd5 {[%clk 0:01:29]}  Nxd5 {[%clk 0:01:24]} 31. exd5 {[%clk 0:01:29]}  Bf5 {[%clk 0:01:23]} 32. Qb3 {[%clk 0:01:22]}  Qa5 {[%clk 0:01:16]} 33. Bb2 {[%clk 0:01:18]}  Qd2 {[%clk 0:01:11]} 34. Bf1 {[%clk 0:01:15]}  Re8 {[%clk 0:01:03]} 35. Bc1 {[%clk 0:01:11]}  Qa5 {[%clk 0:00:57]} 36. Bf4 {[%clk 0:01:07]}  Bf8 {[%clk 0:00:53]} 37. Kg2 {[%clk 0:00:46]}  g5 {[%clk 0:00:50]} 38. Bc1 {[%clk 0:00:42]}  Re1 {[%clk 0:00:37]} 39. Qc2 {[%clk 0:00:36]}  Qd8 {[%clk 0:00:18]} 40. Bd2 {[%clk 0:00:34]}  Rxb1 {[%clk 0:00:17]} 41. Qxb1 {[%clk 0:00:35]}  Qd7 {[%clk 0:00:17]} 42. Kg1 {[%clk 0:00:26]}  Qe7 {[%clk 0:00:17]} 43. Qd1 {[%clk 0:00:20]}  Bg7 {[%clk 0:00:15]} 44. Qf3 {[%clk 0:00:18]}  Qf6 {[%clk 0:00:14]} 45. Ba5 {[%clk 0:00:13]}  Kh7 {[%clk 0:00:12]} 46. Bc7 {[%clk 0:00:13]}  Kg6 {[%clk 0:00:11]} 47. g4 {[%clk 0:00:12]}  Bd7 {[%clk 0:00:09]} 48. Qxf6+ {[%clk 0:00:12]}  Bxf6 {[%clk 0:00:06]} 49. Bxd6 {[%clk 0:00:13]}  Bxg4 {[%clk 0:00:06]} 50. Bxc5 {[%clk 0:00:12]}  Bf5 {[%clk 0:00:06]} 51. Bb6 {[%clk 0:00:11]}  Be5 {[%clk 0:00:05]} 52. c5 {[%clk 0:00:11]}  Kf6 {[%clk 0:00:05]} 53. Bg2 {[%clk 0:00:09]}  Ke7 {[%clk 0:00:05]} 54. d6+ {[%clk 0:00:08]}  Kd7 {[%clk 0:00:05]} 55. Bc7 {[%clk 0:00:08]}  Bxd3 {[%clk 0:00:04]} 56. c6+ {[%clk 0:00:08]}  Kc8 {[%clk 0:00:03]} 57. Bd5 {[%clk 0:00:08]}  Bg6 {[%clk 0:00:02]} 58. Bc4 {[%clk 0:00:07]}  d3 {[%clk 0:00:02]} 59. Ba6# {[%clk 0:00:07]} 1-0


[Site "https://www.chess.com"]

[Event "Titled Tuesday Blitz November 22 Early 2022"]
[White "Nanditha, V"]
[Black "Szyszylo, Rafal"]
[WhiteFideId "46626697"]
[BlackFideId "1109626"]
[WhiteElo "1564"]
[BlackElo "1981"]
[Result "0-1"]
[Round "08"]
[TimeControl "180+1"]
[Date "2022.11.23"]
[WhiteClock "0:00:05"]
[BlackClock "0:00:31"]

1. e4 {[%clk 0:03:00]}  d6 {[%clk 0:02:55]} 2. d4 {[%clk 0:02:59]}  g6 {[%clk 0:02:55]} 3. Nf3 {[%clk 0:02:57]}  Nf6 {[%clk 0:02:53]} 4. Bd3 {[%clk 0:02:52]}  Bg7 {[%clk 0:02:50]} 5. O-O {[%clk 0:02:52]}  Nc6 {[%clk 0:02:50]} 6. c3 {[%clk 0:02:52]}  O-O {[%clk 0:02:46]} 7. Bg5 {[%clk 0:02:51]}  h6 {[%clk 0:02:46]} 8. Bh4 {[%clk 0:02:51]}  e5 {[%clk 0:02:45]} 9. d5 {[%clk 0:02:34]}  Ne7 {[%clk 0:02:43]} 10. c4 {[%clk 0:02:34]}  Nh5 {[%clk 0:02:35]} 11. Bg3 {[%clk 0:02:26]}  Nf4 {[%clk 0:02:32]} 12. Nc3 {[%clk 0:02:17]}  Nxd3 {[%clk 0:02:30]} 13. Qxd3 {[%clk 0:02:18]}  f5 {[%clk 0:02:30]} 14. h3 {[%clk 0:01:54]}  f4 {[%clk 0:02:21]} 15. Bh2 {[%clk 0:01:54]}  g5 {[%clk 0:02:21]} 16. g4 {[%clk 0:01:38]}  fxg3 {[%clk 0:02:20]} 17. fxg3 {[%clk 0:01:37]}  Bxh3 {[%clk 0:02:19]} 18. Rf2 {[%clk 0:01:37]}  Qd7 {[%clk 0:02:06]} 19. Nd1 {[%clk 0:01:17]}  Rf7 {[%clk 0:02:01]} 20. Rc1 {[%clk 0:00:55]}  Raf8 {[%clk 0:02:01]} 21. Rcc2 {[%clk 0:00:56]}  b6 {[%clk 0:02:00]} 22. Ne1 {[%clk 0:00:55]}  Bg4 {[%clk 0:01:51]} 23. Rxf7 {[%clk 0:00:52]}  Rxf7 {[%clk 0:01:51]} 24. Rf2 {[%clk 0:00:52]}  Qe8 {[%clk 0:01:44]} 25. Rxf7 {[%clk 0:00:46]}  Qxf7 {[%clk 0:01:45]} 26. Nf2 {[%clk 0:00:47]}  Bd7 {[%clk 0:01:43]} 27. g4 {[%clk 0:00:46]}  Ng6 {[%clk 0:01:42]} 28. Ng2 {[%clk 0:00:39]}  Nf4 {[%clk 0:01:40]} 29. Bxf4 {[%clk 0:00:37]}  exf4 {[%clk 0:01:40]} 30. Ne1 {[%clk 0:00:36]}  Bxb2 {[%clk 0:01:38]} 31. Nf3 {[%clk 0:00:31]}  Qf6 {[%clk 0:01:35]} 32. e5 {[%clk 0:00:17]}  Bxe5 {[%clk 0:01:31]} 33. Ne4 {[%clk 0:00:17]}  Qg6 {[%clk 0:01:27]} 34. Nh2 {[%clk 0:00:17]}  Kg7 {[%clk 0:01:22]} 35. Qe2 {[%clk 0:00:15]}  Bd4+ {[%clk 0:01:21]} 36. Kg2 {[%clk 0:00:15]}  Be3 {[%clk 0:01:20]} 37. Kf3 {[%clk 0:00:15]}  h5 {[%clk 0:01:16]} 38. Nf2 {[%clk 0:00:12]}  Kf7 {[%clk 0:00:57]} 39. Nf1 {[%clk 0:00:12]}  Bxf2 {[%clk 0:00:56]} 40. Kxf2 {[%clk 0:00:11]}  Bxg4 {[%clk 0:00:54]} 41. Qb2 {[%clk 0:00:09]}  Qf6 {[%clk 0:00:54]} 42. Qd2 {[%clk 0:00:08]}  Qe5 {[%clk 0:00:53]} 43. Qc2 {[%clk 0:00:08]}  Bf5 {[%clk 0:00:52]} 44. Qa4 {[%clk 0:00:07]}  Qd4+ {[%clk 0:00:51]} 45. Kg2 {[%clk 0:00:07]}  a5 {[%clk 0:00:52]} 46. Qc6 {[%clk 0:00:07]}  Qc5 {[%clk 0:00:39]} 47. Qb7 {[%clk 0:00:06]}  Be4+ {[%clk 0:00:36]} 48. Kh2 {[%clk 0:00:06]}  Qxc4 {[%clk 0:00:36]} 49. Qb8 {[%clk 0:00:05]}  Qe2+ {[%clk 0:00:31]} 50. Kh3 {[%clk 0:00:05]}  Qg2# {[%clk 0:00:31]} 0-1


[Site "https://www.chess.com"]